[Event "Early-Titled-Tuesday-Blitz-March-12-2024"]
[Site "Chess.com"]
[Date "2024.03.12"]
[Round "1"]
[White "kassablanca"]
[Black "Practical-Play"]
[Result "0-1"]
[WhiteElo "2770"]
[BlackElo "2445"]
[TimeControl "180+1"]
[EndTime "8:07:55 PDT"]
[Termination "Practical-Play won by checkmate"]

1. d4 {[%clk 0:02:58.3]} 1... e6 {[%clk 0:02:44.6]} 2. c4 {[%clk 0:02:58.5]}
2... Bb4+ {[%clk 0:02:43]} 3. Nd2 {[%clk 0:02:57.6]} 3... c5 {[%clk 0:02:38.7]}
4. a3 {[%clk 0:02:56.2]} 4... Bxd2+ {[%clk 0:02:37.6]} 5. Qxd2 {[%clk
0:02:57.1]} 5... cxd4 {[%clk 0:02:38]} 6. Qxd4 {[%clk 0:02:57.1]} 6... Nf6
{[%clk 0:02:37.1]} 7. Nf3 {[%clk 0:02:57.7]} 7... Nc6 {[%clk 0:02:36.7]} 8. Qc3
{[%clk 0:02:46.9]} 8... O-O {[%clk 0:02:33.7]} 9. Bg5 {[%clk 0:02:40.7]} 9...
Qe7 {[%clk 0:01:51.6]} 10. e3 {[%clk 0:02:37.7]} 10... d6 {[%clk 0:01:48.2]} 11.
Be2 {[%clk 0:02:28.7]} 11... e5 {[%clk 0:01:44.6]} 12. Nd2 {[%clk 0:02:12.8]}
12... h6 {[%clk 0:01:32.4]} 13. Bh4 {[%clk 0:02:11.6]} 13... Re8 {[%clk
0:01:25.9]} 14. Rd1 {[%clk 0:01:55.9]} 14... Nd4 {[%clk 0:01:11.8]} 15. Bxf6
{[%clk 0:01:24.3]} 15... Nxe2 {[%clk 0:01:10.9]} 16. Bxe7 {[%clk 0:01:08.4]}
16... Nxc3 {[%clk 0:01:10.5]} 17. Rc1 {[%clk 0:01:07.3]} 17... Na2 {[%clk
0:00:59.5]} 18. Ra1 {[%clk 0:01:04.5]} 18... Rxe7 {[%clk 0:00:58.9]} 19. Rxa2
{[%clk 0:01:04.7]} 19... Be6 {[%clk 0:00:58.6]} 20. Ra1 {[%clk 0:01:01.9]} 20...
Rc7 {[%clk 0:00:57.1]} 21. b3 {[%clk 0:01:00.8]} 21... d5 {[%clk 0:00:55.1]} 22.
cxd5 {[%clk 0:00:43.4]} 22... Bxd5 {[%clk 0:00:56]} 23. O-O {[%clk 0:00:42.4]}
23... Rc2 {[%clk 0:00:54]} 24. Rfd1 {[%clk 0:00:42.8]} 24... Rac8 {[%clk
0:00:49.3]} 25. h4 {[%clk 0:00:41.8]} 25... Rb2 {[%clk 0:00:43.6]} 26. Rab1
{[%clk 0:00:40.6]} 26... Ra2 {[%clk 0:00:37.2]} 27. Nc4 {[%clk 0:00:39.5]} 27...
Bxc4 {[%clk 0:00:32.5]} 28. bxc4 {[%clk 0:00:40.4]} 28... b6 {[%clk 0:00:27.7]}
29. Rd5 {[%clk 0:00:35.3]} 29... f6 {[%clk 0:00:23.9]} 30. c5 {[%clk 0:00:16.6]}
30... Rxc5 {[%clk 0:00:21.1]} 31. Rxc5 {[%clk 0:00:16.6]} 31... bxc5 {[%clk
0:00:22]} 32. Rb8+ {[%clk 0:00:16.7]} 32... Kh7 {[%clk 0:00:16.8]} 33. Rc8
{[%clk 0:00:16.9]} 33... Rxa3 {[%clk 0:00:12.7]} 34. Rxc5 {[%clk 0:00:17.5]}
34... Kg6 {[%clk 0:00:13.3]} 35. g4 {[%clk 0:00:17.6]} 35... h5 {[%clk
0:00:12.7]} 36. g5 {[%clk 0:00:16.7]} 36... fxg5 {[%clk 0:00:12.6]} 37. hxg5
{[%clk 0:00:17.6]} 37... Kxg5 {[%clk 0:00:13.2]} 38. Rxe5+ {[%clk 0:00:18]}
38... Kh6 {[%clk 0:00:11]} 39. Re6+ {[%clk 0:00:18.2]} 39... g6 {[%clk
0:00:10.7]} 40. Kg2 {[%clk 0:00:18.4]} 40... Ra2 {[%clk 0:00:10.2]} 41. Kg3
{[%clk 0:00:17.7]} 41... a5 {[%clk 0:00:10.7]} 42. f4 {[%clk 0:00:17.8]} 42...
Kg7 {[%clk 0:00:10.4]} 43. Ra6 {[%clk 0:00:17.3]} 43... Ra3 {[%clk 0:00:09.4]}
44. Kf3 {[%clk 0:00:17]} 44... Kf7 {[%clk 0:00:08.9]} 45. Ke4 {[%clk 0:00:17.3]}
45... h4 {[%clk 0:00:08.4]} 46. Kf3 {[%clk 0:00:17.2]} 46... h3 {[%clk
0:00:08.5]} 47. Ra8 {[%clk 0:00:16.5]} 47... Ra2 {[%clk 0:00:04.3]} 48. Rh8
{[%clk 0:00:15.4]} 48... h2 {[%clk 0:00:04.8]} 49. Kg3 {[%clk 0:00:14.6]} 49...
a4 {[%clk 0:00:05.2]} 50. e4 {[%clk 0:00:14]} 50... a3 {[%clk 0:00:05.5]} 51. e5
{[%clk 0:00:14.4]} 51... Rb2 {[%clk 0:00:05.8]} 52. Rh7+ {[%clk 0:00:12.9]}
52... Ke6 {[%clk 0:00:04.8]} 53. Ra7 {[%clk 0:00:13.6]} 53... h1=Q {[%clk
0:00:03.5]} 54. Ra6+ {[%clk 0:00:14.5]} 54... Ke7 {[%clk 0:00:02.9]} 55. Ra7+
{[%clk 0:00:15.4]} 55... Kd8 {[%clk 0:00:03.1]} 56. Ra6 {[%clk 0:00:16.3]} 56...
Qg2+ {[%clk 0:00:02.9]} 57. Kh4 {[%clk 0:00:16.4]} 57... Rb3 {[%clk 0:00:03.5]}
58. Rd6+ {[%clk 0:00:15.8]} 58... Kc7 {[%clk 0:00:03.4]} 59. Rd4 {[%clk
0:00:16.3]} 59... Rh3# {[%clk 0:00:02.9]} 0-1

[Event "Early-Titled-Tuesday-Blitz-March-12-2024"]
[Site "Chess.com"]
[Date "2024.03.12"]
[Round "1"]
[White "Grandelicious"]
[Black "YegoryoCh"]
[Result "1-0"]
[WhiteElo "2880"]
[BlackElo "2490"]
[TimeControl "180+1"]
[EndTime "8:07:56 PDT"]
[Termination "Grandelicious won by resignation"]

1. Nf3 {[%clk 0:03:00.9]} 1... d5 {[%clk 0:02:59.2]} 2. e3 {[%clk 0:03:00.4]}
2... Nf6 {[%clk 0:02:57.1]} 3. c4 {[%clk 0:03:00.9]} 3... e6 {[%clk 0:02:57.2]}
4. b3 {[%clk 0:03:01.2]} 4... b6 {[%clk 0:02:56.6]} 5. cxd5 {[%clk 0:03:00.8]}
5... exd5 {[%clk 0:02:56.3]} 6. g3 {[%clk 0:02:59.3]} 6... Bd6 {[%clk
0:02:51.9]} 7. Bg2 {[%clk 0:02:59]} 7... O-O {[%clk 0:02:51.5]} 8. O-O {[%clk
0:02:59.2]} 8... Nbd7 {[%clk 0:02:48.1]} 9. Bb2 {[%clk 0:02:58.1]} 9... Re8
{[%clk 0:02:46.2]} 10. Nc3 {[%clk 0:02:57]} 10... a6 {[%clk 0:02:44.5]} 11. Rc1
{[%clk 0:02:47.9]} 11... Bb7 {[%clk 0:02:44.7]} 12. Qc2 {[%clk 0:02:47.6]} 12...
Rc8 {[%clk 0:02:43.3]} 13. Rfe1 {[%clk 0:02:46.7]} 13... Ne5 {[%clk 0:02:36.5]}
14. Nxe5 {[%clk 0:02:40.7]} 14... Bxe5 {[%clk 0:02:37.1]} 15. Ne2 {[%clk
0:02:14.7]} 15... Bxb2 {[%clk 0:02:23.6]} 16. Qxb2 {[%clk 0:02:15.6]} 16... Ne4
{[%clk 0:02:24]} 17. b4 {[%clk 0:02:01.3]} 17... Nd6 {[%clk 0:02:16.7]} 18. d3
{[%clk 0:01:58.5]} 18... Qd7 {[%clk 0:02:09]} 19. Nf4 {[%clk 0:01:56.2]} 19...
Nf5 {[%clk 0:02:03.3]} 20. Bh3 {[%clk 0:01:45.7]} 20... Rcd8 {[%clk 0:01:42]}
21. Nh5 {[%clk 0:01:39.7]} 21... d4 {[%clk 0:01:42.1]} 22. e4 {[%clk 0:01:34.4]}
22... Qd6 {[%clk 0:01:33.4]} 23. Bxf5 {[%clk 0:01:24.5]} 23... g6 {[%clk
0:01:32.9]} 24. Bg4 {[%clk 0:01:20]} 24... gxh5 {[%clk 0:01:31.5]} 25. Bxh5
{[%clk 0:01:20.3]} 25... Re7 {[%clk 0:01:29.1]} 26. Bg4 {[%clk 0:01:16.1]} 26...
Re5 {[%clk 0:01:11.4]} 27. a3 {[%clk 0:01:12.1]} 27... Rb5 {[%clk 0:01:03.9]}
28. Qd2 {[%clk 0:01:06.6]} 28... a5 {[%clk 0:01:02.4]} 29. Rc4 {[%clk
0:01:06.3]} 29... axb4 {[%clk 0:00:59.6]} 30. axb4 {[%clk 0:01:07.2]} 30... c5
{[%clk 0:00:58.6]} 31. bxc5 {[%clk 0:01:06.1]} 31... bxc5 {[%clk 0:00:59.5]} 32.
Rec1 {[%clk 0:01:03.6]} 32... Qe7 {[%clk 0:00:55.4]} 33. Bf5 {[%clk 0:01:01]}
33... Ra8 {[%clk 0:00:54]} 34. Qh6 {[%clk 0:00:57.8]} 34... f6 {[%clk
0:00:54.5]} 35. Qd2 {[%clk 0:00:44]} 35... Ra3 {[%clk 0:00:48.7]} 36. Qc2 {[%clk
0:00:39]} 36... Ba6 {[%clk 0:00:41.6]} 37. Qd1 {[%clk 0:00:31.8]} 37... Rba5
{[%clk 0:00:37.8]} 38. Qg4+ {[%clk 0:00:27.4]} 38... Kf8 {[%clk 0:00:37.7]} 39.
Rb1 {[%clk 0:00:24.8]} 39... Rb5 {[%clk 0:00:34.5]} 40. Rcc1 {[%clk 0:00:19.4]}
40... Rab3 {[%clk 0:00:31.1]} 41. Ra1 {[%clk 0:00:19.2]} 41... Rb6 {[%clk
0:00:30.7]} 42. Qf4 {[%clk 0:00:13.4]} 42... Rxd3 {[%clk 0:00:23.7]} 43. Ra5
{[%clk 0:00:13.3]} 43... Rc3 {[%clk 0:00:23.3]} 44. Rca1 {[%clk 0:00:12.5]}
44... Qb7 {[%clk 0:00:20.7]} 45. h4 {[%clk 0:00:11]} 45... Rb1+ {[%clk
0:00:20.4]} 46. Rxb1 {[%clk 0:00:08.7]} 46... Qxb1+ {[%clk 0:00:21.2]} 47. Kh2
{[%clk 0:00:09.6]} 47... Qb6 {[%clk 0:00:20.9]} 48. Ra2 {[%clk 0:00:08.3]} 48...
Bc4 {[%clk 0:00:20.1]} 49. Qh6+ {[%clk 0:00:07.8]} 49... Kg8 {[%clk 0:00:19.5]}
50. Qxh7+ {[%clk 0:00:07.5]} 50... Kf8 {[%clk 0:00:19.7]} 51. Ra8+ {[%clk
0:00:08.1]} 1-0

[Event "Early-Titled-Tuesday-Blitz-March-12-2024"]
[Site "Chess.com"]
[Date "2024.03.12"]
[Round "1"]
[White "eCztery"]
[Black "Byniolus"]
[Result "1/2-1/2"]
[WhiteElo "2463"]
[BlackElo "2812"]
[TimeControl "180+1"]
[EndTime "8:07:59 PDT"]
[Termination "Game drawn by repetition"]

1. e4 {[%clk 0:02:51.7]} 1... d6 {[%clk 0:03:00.1]} 2. d4 {[%clk 0:02:50.2]}
2... Nf6 {[%clk 0:03:00.5]} 3. Nc3 {[%clk 0:02:50.9]} 3... c6 {[%clk 0:03:00.7]}
4. Nf3 {[%clk 0:02:50.6]} 4... Bg4 {[%clk 0:03:00.5]} 5. Be2 {[%clk 0:02:50.1]}
5... e6 {[%clk 0:02:59.7]} 6. O-O {[%clk 0:02:50]} 6... Be7 {[%clk 0:02:57.7]}
7. e5 {[%clk 0:02:47.3]} 7... Nd5 {[%clk 0:02:57.7]} 8. exd6 {[%clk 0:02:41.6]}
8... Bxd6 {[%clk 0:02:56.1]} 9. Ne4 {[%clk 0:02:41.3]} 9... Be7 {[%clk
0:02:55.6]} 10. Ne5 {[%clk 0:02:29.6]} 10... Bxe2 {[%clk 0:02:53.4]} 11. Qxe2
{[%clk 0:02:30.5]} 11... Nd7 {[%clk 0:02:51.3]} 12. Rd1 {[%clk 0:02:19.3]} 12...
O-O {[%clk 0:02:47.7]} 13. c4 {[%clk 0:02:10.3]} 13... N5f6 {[%clk 0:02:35.4]}
14. Ng5 {[%clk 0:02:04.5]} 14... Qe8 {[%clk 0:01:41]} 15. Bf4 {[%clk 0:02:01]}
15... h6 {[%clk 0:01:35]} 16. Ngf3 {[%clk 0:02:01.1]} 16... Rd8 {[%clk
0:01:31.1]} 17. h3 {[%clk 0:01:56.9]} 17... a6 {[%clk 0:01:26.4]} 18. Rac1
{[%clk 0:01:53.5]} 18... Nxe5 {[%clk 0:01:24.1]} 19. Nxe5 {[%clk 0:01:53.1]}
19... Nd7 {[%clk 0:01:17]} 20. Qg4 {[%clk 0:01:45.4]} 20... Kh8 {[%clk
0:01:16.3]} 21. Qh5 {[%clk 0:01:36.8]} 21... Nf6 {[%clk 0:01:13.6]} 22. Qf3
{[%clk 0:01:31.9]} 22... Nd7 {[%clk 0:01:10.9]} 23. Ng4 {[%clk 0:01:21.2]} 23...
Rg8 {[%clk 0:00:52.3]} 24. Qe3 {[%clk 0:01:15]} 24... Bf8 {[%clk 0:00:44]} 25.
Rc3 {[%clk 0:01:03.3]} 25... Qe7 {[%clk 0:00:25.7]} 26. Re1 {[%clk 0:00:47.1]}
26... Qh4 {[%clk 0:00:20.3]} 27. Be5 {[%clk 0:00:36.3]} 27... Bb4 {[%clk
0:00:10.8]} 28. Re2 {[%clk 0:00:08.9]} 28... Bxc3 {[%clk 0:00:10.6]} 29. bxc3
{[%clk 0:00:09.8]} 29... Nxe5 {[%clk 0:00:10]} 30. Nxe5 {[%clk 0:00:10.7]} 30...
Qe7 {[%clk 0:00:08.8]} 31. Qf3 {[%clk 0:00:10.2]} 31... Rgf8 {[%clk 0:00:08.9]}
32. Re4 {[%clk 0:00:10.7]} 32... Kg8 {[%clk 0:00:05.1]} 33. Qh5 {[%clk
0:00:10.5]} 33... f5 {[%clk 0:00:04.1]} 34. Re3 {[%clk 0:00:05.6]} 34... Qe8
{[%clk 0:00:04.6]} 35. Qe2 {[%clk 0:00:05.8]} 35... Rf6 {[%clk 0:00:05]} 36. Nf3
{[%clk 0:00:05.9]} 36... Qf7 {[%clk 0:00:04.3]} 37. Ne5 {[%clk 0:00:04.7]} 37...
Qf8 {[%clk 0:00:04.7]} 38. Nd3 {[%clk 0:00:04.9]} 38... Re8 {[%clk 0:00:03.9]}
39. Nc5 {[%clk 0:00:05]} 39... Qf7 {[%clk 0:00:03.6]} 40. Nd3 {[%clk 0:00:04.6]}
40... Qc7 {[%clk 0:00:03.2]} 41. Ne5 {[%clk 0:00:05.5]} 41... b6 {[%clk
0:00:02.6]} 42. Rg3 {[%clk 0:00:05.9]} 42... c5 {[%clk 0:00:02.6]} 43. Qe3
{[%clk 0:00:04.9]} 43... cxd4 {[%clk 0:00:02.9]} 44. cxd4 {[%clk 0:00:05.8]}
44... Rd8 {[%clk 0:00:03.4]} 45. Qf4 {[%clk 0:00:05.3]} 45... Qd6 {[%clk
0:00:03.5]} 46. Qh4 {[%clk 0:00:05.3]} 46... Kf8 {[%clk 0:00:02.9]} 47. Ng6+
{[%clk 0:00:05]} 47... Kg8 {[%clk 0:00:02.6]} 48. Ne5 {[%clk 0:00:05.1]} 48...
Qf8 {[%clk 0:00:02.6]} 49. Ng6 {[%clk 0:00:05]} 49... Qf7 {[%clk 0:00:02.9]} 50.
Ne5 {[%clk 0:00:05.6]} 50... Qe7 {[%clk 0:00:02]} 51. Ng6 {[%clk 0:00:05.7]}
51... Qd6 {[%clk 0:00:02.4]} 52. Ne5 {[%clk 0:00:05.1]} 1/2-1/2

[Event "Early-Titled-Tuesday-Blitz-March-12-2024"]
[Site "Chess.com"]
[Date "2024.03.12"]
[Round "1"]
[White "profedechess93"]
[Black "pirulillo"]
[Result "0-1"]
[WhiteElo "2637"]
[BlackElo "2277"]
[TimeControl "180+1"]
[EndTime "8:07:59 PDT"]
[Termination "pirulillo won by resignation"]

1. e4 {[%clk 0:03:00.9]} 1... c5 {[%clk 0:02:58.9]} 2. Nf3 {[%clk 0:02:59.6]}
2... e6 {[%clk 0:02:58.8]} 3. d4 {[%clk 0:02:58.5]} 3... cxd4 {[%clk 0:02:58.7]}
4. Nxd4 {[%clk 0:02:58.4]} 4... Nf6 {[%clk 0:02:58.7]} 5. Nc3 {[%clk 0:02:59.1]}
5... Nc6 {[%clk 0:02:58.3]} 6. Nxc6 {[%clk 0:02:59.3]} 6... bxc6 {[%clk
0:02:58.1]} 7. e5 {[%clk 0:02:59.9]} 7... Nd5 {[%clk 0:02:58.1]} 8. Ne4 {[%clk
0:03:00.6]} 8... Bb7 {[%clk 0:02:58.1]} 9. Bd3 {[%clk 0:02:46.9]} 9... c5 {[%clk
0:02:56.6]} 10. c4 {[%clk 0:02:47.1]} 10... Nb4 {[%clk 0:02:45.4]} 11. Bb1
{[%clk 0:02:45.4]} 11... Qc7 {[%clk 0:02:42.8]} 12. Qh5 {[%clk 0:02:04.9]} 12...
Be7 {[%clk 0:02:25.1]} 13. Bf4 {[%clk 0:01:57.3]} 13... Nc6 {[%clk 0:01:59]} 14.
O-O {[%clk 0:01:46.6]} 14... g6 {[%clk 0:01:51.4]} 15. Qh6 {[%clk 0:01:36.5]}
15... O-O-O {[%clk 0:01:38.9]} 16. Nd6+ {[%clk 0:01:35.4]} 16... Bxd6 {[%clk
0:01:35.8]} 17. exd6 {[%clk 0:01:35.7]} 17... Qb6 {[%clk 0:01:35.8]} 18. Bg5
{[%clk 0:01:04]} 18... Rdf8 {[%clk 0:01:23.6]} 19. Bf6 {[%clk 0:01:01.5]} 19...
Rhg8 {[%clk 0:01:22.1]} 20. Be4 {[%clk 0:00:51.8]} 20... Nd4 {[%clk 0:01:14.7]}
21. Bxb7+ {[%clk 0:00:51.8]} 21... Kxb7 {[%clk 0:01:12.9]} 22. b4 {[%clk
0:00:34.6]} 22... cxb4 {[%clk 0:00:52.6]} 23. c5 {[%clk 0:00:29.6]} 23... Qxc5
{[%clk 0:00:45.7]} 24. Qe3 {[%clk 0:00:28.4]} 24... e5 {[%clk 0:00:40.6]} 25.
Bxe5 {[%clk 0:00:25.4]} 25... Ne6 {[%clk 0:00:40.5]} 26. Qe4+ {[%clk 0:00:23.7]}
26... Qc6 {[%clk 0:00:37.9]} 27. Qxb4+ {[%clk 0:00:23.1]} 27... Ka8 {[%clk
0:00:38.6]} 28. Rfc1 {[%clk 0:00:22.9]} 28... Qd5 {[%clk 0:00:30.6]} 29. Bg3
{[%clk 0:00:22.8]} 29... Rb8 {[%clk 0:00:29.4]} 30. Qa3 {[%clk 0:00:22.8]} 30...
f5 {[%clk 0:00:24.9]} 31. f3 {[%clk 0:00:22.6]} 31... Rgc8 {[%clk 0:00:20.6]}
32. Bf2 {[%clk 0:00:22.2]} 32... Rxc1+ {[%clk 0:00:19.5]} 33. Rxc1 {[%clk
0:00:22.3]} 33... Qb7 {[%clk 0:00:19.9]} 34. Qa5 {[%clk 0:00:21.1]} 34... a6
{[%clk 0:00:19.3]} 35. h3 {[%clk 0:00:20.2]} 35... Rc8 {[%clk 0:00:19.5]} 36.
Rd1 {[%clk 0:00:14.5]} 36... Qb5 {[%clk 0:00:18]} 37. Qa3 {[%clk 0:00:13.7]}
37... Rc2 {[%clk 0:00:17.5]} 38. Qe3 {[%clk 0:00:11.6]} 38... Qc5 {[%clk
0:00:14.6]} 39. Qe1 {[%clk 0:00:10.6]} 39... Qc4 {[%clk 0:00:13.5]} 40. Qe3
{[%clk 0:00:07]} 40... Qc5 {[%clk 0:00:13.5]} 41. Qe1 {[%clk 0:00:07.1]} 41...
Qc4 {[%clk 0:00:12.7]} 42. a4 {[%clk 0:00:05.7]} 42... Qe2 {[%clk 0:00:12.2]}
43. Qxe2 {[%clk 0:00:02.2]} 43... Rxe2 {[%clk 0:00:13.1]} 44. Rc1 {[%clk
0:00:02.4]} 44... Kb7 {[%clk 0:00:11.4]} 45. Rc4 {[%clk 0:00:02.4]} 45... a5
{[%clk 0:00:10.7]} 46. Rh4 {[%clk 0:00:02.4]} 46... h5 {[%clk 0:00:10.2]} 47.
Rc4 {[%clk 0:00:03.1]} 47... Ra2 {[%clk 0:00:10]} 48. Be3 {[%clk 0:00:01.6]}
48... Ra3 {[%clk 0:00:09.8]} 49. Bf2 {[%clk 0:00:02.1]} 49... Ra1+ {[%clk
0:00:09.6]} 50. Rc1 {[%clk 0:00:03]} 50... Rxc1+ {[%clk 0:00:09.4]} 51. Kh2
{[%clk 0:00:03.6]} 51... Rc4 {[%clk 0:00:09.9]} 0-1

[Event "Early-Titled-Tuesday-Blitz-March-12-2024"]
[Site "Chess.com"]
[Date "2024.03.12"]
[Round "1"]
[White "LeoPiper"]
[Black "Matibar"]
[Result "1/2-1/2"]
[WhiteElo "2409"]
[BlackElo "2742"]
[TimeControl "180+1"]
[EndTime "8:08:00 PDT"]
[Termination "Game drawn - insufficient material"]

1. d4 {[%clk 0:02:57.2]} 1... Nf6 {[%clk 0:02:58.7]} 2. c4 {[%clk 0:02:57.3]}
2... g6 {[%clk 0:02:58.9]} 3. g3 {[%clk 0:02:57.6]} 3... Bg7 {[%clk 0:02:58.7]}
4. Bg2 {[%clk 0:02:58.4]} 4... O-O {[%clk 0:02:57.3]} 5. Nf3 {[%clk 0:02:59]}
5... d6 {[%clk 0:02:56.8]} 6. O-O {[%clk 0:02:59.7]} 6... Nc6 {[%clk 0:02:55]}
7. Nc3 {[%clk 0:02:59.7]} 7... Bf5 {[%clk 0:02:54.9]} 8. d5 {[%clk 0:02:45.2]}
8... Na5 {[%clk 0:02:50.5]} 9. b3 {[%clk 0:02:42.8]} 9... Ne4 {[%clk 0:02:31.4]}
10. Nxe4 {[%clk 0:02:39.7]} 10... Bxe4 {[%clk 0:02:25.7]} 11. Bd2 {[%clk
0:02:03.9]} 11... c5 {[%clk 0:02:18.9]} 12. Rc1 {[%clk 0:01:51.4]} 12... a6
{[%clk 0:02:08.2]} 13. Qe1 {[%clk 0:01:41.3]} 13... b6 {[%clk 0:02:07.6]} 14.
Bc3 {[%clk 0:01:41.9]} 14... Bxc3 {[%clk 0:02:02.1]} 15. Qxc3 {[%clk 0:01:41.9]}
15... b5 {[%clk 0:02:02.5]} 16. Nd2 {[%clk 0:01:37.4]} 16... Bxg2 {[%clk
0:01:58.9]} 17. Kxg2 {[%clk 0:01:38.3]} 17... Rb8 {[%clk 0:01:52.2]} 18. h4
{[%clk 0:01:36.1]} 18... bxc4 {[%clk 0:01:41.4]} 19. Nxc4 {[%clk 0:01:32.7]}
19... Nxc4 {[%clk 0:01:40.4]} 20. bxc4 {[%clk 0:01:33.1]} 20... Qb6 {[%clk
0:01:36.2]} 21. Rc2 {[%clk 0:01:01.5]} 21... Qb4 {[%clk 0:01:19.4]} 22. Qe3
{[%clk 0:01:01.6]} 22... Qa4 {[%clk 0:01:19.4]} 23. Rfc1 {[%clk 0:00:57.5]}
23... Qd7 {[%clk 0:01:17.4]} 24. h5 {[%clk 0:00:55.2]} 24... e5 {[%clk 0:01:17]}
25. Rh1 {[%clk 0:00:31.6]} 25... Qf5 {[%clk 0:01:12.6]} 26. Rc3 {[%clk
0:00:16.5]} 26... g5 {[%clk 0:01:08]} 27. Qd2 {[%clk 0:00:10.2]} 27... h6 {[%clk
0:01:05.2]} 28. Rf3 {[%clk 0:00:10]} 28... Qe4 {[%clk 0:01:05.3]} 29. Kh2 {[%clk
0:00:09.1]} 29... f5 {[%clk 0:01:02.3]} 30. Rb3 {[%clk 0:00:07.7]} 30... Qxc4
{[%clk 0:00:58.7]} 31. Rhb1 {[%clk 0:00:05.1]} 31... Rxb3 {[%clk 0:00:55]} 32.
Rxb3 {[%clk 0:00:06]} 32... Qg4 {[%clk 0:00:54.5]} 33. Rb7 {[%clk 0:00:04.3]}
33... Qxh5+ {[%clk 0:00:54.2]} 34. Kg1 {[%clk 0:00:05.2]} 34... Rf7 {[%clk
0:00:51.4]} 35. Rb8+ {[%clk 0:00:05]} 35... Kg7 {[%clk 0:00:51.3]} 36. Qa5
{[%clk 0:00:05.8]} 36... Qxe2 {[%clk 0:00:36.4]} 37. Qd8 {[%clk 0:00:06.1]}
37... Qd1+ {[%clk 0:00:28]} 38. Kh2 {[%clk 0:00:04.3]} 38... Qxd5 {[%clk
0:00:27.7]} 39. Qg8+ {[%clk 0:00:03.7]} 39... Kf6 {[%clk 0:00:27.7]} 40. Qh8+
{[%clk 0:00:04]} 40... Kg6 {[%clk 0:00:28.1]} 41. Qg8+ {[%clk 0:00:02.4]} 41...
Kh5 {[%clk 0:00:27.6]} 42. Rf8 {[%clk 0:00:02.8]} 42... Qxa2 {[%clk 0:00:20.2]}
43. Qxf7+ {[%clk 0:00:02.5]} 43... Qxf7 {[%clk 0:00:19.9]} 44. Rxf7 {[%clk
0:00:03.4]} 44... Kg4 {[%clk 0:00:20.2]} 45. Rd7 {[%clk 0:00:03.6]} 45... h5
{[%clk 0:00:17.7]} 46. Rxd6 {[%clk 0:00:03.1]} 46... e4 {[%clk 0:00:18.2]} 47.
Rd5 {[%clk 0:00:03]} 47... h4 {[%clk 0:00:17]} 48. gxh4 {[%clk 0:00:03.3]} 48...
gxh4 {[%clk 0:00:17.4]} 49. Rxc5 {[%clk 0:00:03.7]} 49... f4 {[%clk 0:00:17.9]}
50. Ra5 {[%clk 0:00:03.7]} 50... Kf3 {[%clk 0:00:18.3]} 51. Kg1 {[%clk 0:00:04]}
51... h3 {[%clk 0:00:18.3]} 52. Ra3+ {[%clk 0:00:02.7]} 52... e3 {[%clk
0:00:18]} 53. fxe3 {[%clk 0:00:03]} 53... fxe3 {[%clk 0:00:18.9]} 54. Rxa6
{[%clk 0:00:03.3]} 54... h2+ {[%clk 0:00:19.2]} 55. Kxh2 {[%clk 0:00:03.5]}
55... e2 {[%clk 0:00:19.2]} 56. Re6 {[%clk 0:00:03.9]} 56... Kf2 {[%clk
0:00:19.2]} 57. Rxe2+ {[%clk 0:00:04]} 57... Kxe2 {[%clk 0:00:19.5]} 1/2-1/2

[Event "Early-Titled-Tuesday-Blitz-March-12-2024"]
[Site "Chess.com"]
[Date "2024.03.12"]
[Round "1"]
[White "Switzerlamb"]
[Black "Rud_Makarian"]
[Result "0-1"]
[WhiteElo "2549"]
[BlackElo "3006"]
[TimeControl "180+1"]
[EndTime "8:08:04 PDT"]
[Termination "Rud_Makarian won by resignation"]

1. Nf3 {[%clk 0:03:00.9]} 1... Nf6 {[%clk 0:03:00]} 2. c4 {[%clk 0:03:01.3]}
2... e6 {[%clk 0:03:00]} 3. Nc3 {[%clk 0:03:01.8]} 3... d5 {[%clk 0:03:00.5]} 4.
d4 {[%clk 0:03:01.8]} 4... dxc4 {[%clk 0:02:59.4]} 5. e4 {[%clk 0:03:01.6]} 5...
b5 {[%clk 0:02:59.3]} 6. e5 {[%clk 0:03:01.4]} 6... Nd5 {[%clk 0:02:59.8]} 7.
Nxb5 {[%clk 0:03:01.4]} 7... Nb6 {[%clk 0:03:00.6]} 8. Ng5 {[%clk 0:02:57.5]}
8... Be7 {[%clk 0:02:42.9]} 9. Qh5 {[%clk 0:02:55.6]} 9... Bxg5 {[%clk
0:02:40.1]} 10. Bxg5 {[%clk 0:02:56.5]} 10... Qd7 {[%clk 0:02:40.6]} 11. Nc3
{[%clk 0:02:46.4]} 11... Nc6 {[%clk 0:02:41]} 12. Rd1 {[%clk 0:02:44.1]} 12...
Bb7 {[%clk 0:02:37.2]} 13. Be2 {[%clk 0:02:35.4]} 13... h6 {[%clk 0:02:31.2]}
14. Bf3 {[%clk 0:02:29.8]} 14... Na5 {[%clk 0:02:10.1]} 15. Bxb7 {[%clk
0:02:23.5]} 15... Nxb7 {[%clk 0:02:11]} 16. O-O {[%clk 0:02:16.4]} 16... Nd5
{[%clk 0:02:11]} 17. Nxd5 {[%clk 0:01:57.6]} 17... Qxd5 {[%clk 0:02:11.9]} 18.
f4 {[%clk 0:01:56.9]} 18... Na5 {[%clk 0:01:54.6]} 19. f5 {[%clk 0:01:53.1]}
19... exf5 {[%clk 0:01:33.3]} 20. e6 {[%clk 0:01:42.3]} 20... O-O {[%clk
0:01:33.2]} 21. e7 {[%clk 0:01:19.8]} 21... hxg5 {[%clk 0:01:10.6]} 22. exf8=Q+
{[%clk 0:01:20.4]} 22... Rxf8 {[%clk 0:01:11.5]} 23. Rf3 {[%clk 0:01:14]} 23...
f6 {[%clk 0:01:04]} 24. Rh3 {[%clk 0:01:08.8]} 24... Nc6 {[%clk 0:00:58.8]} 25.
Qh7+ {[%clk 0:01:03.4]} 25... Kf7 {[%clk 0:00:58.8]} 26. Rh6 {[%clk 0:01:00.5]}
26... Nxd4 {[%clk 0:00:33.7]} 27. Re1 {[%clk 0:00:59.7]} 27... Ne6 {[%clk
0:00:23.4]} 28. Qg6+ {[%clk 0:00:59.3]} 28... Ke7 {[%clk 0:00:23.9]} 29. Qxg7+
{[%clk 0:00:58.6]} 29... Rf7 {[%clk 0:00:24.6]} 30. Qg8 {[%clk 0:00:46.1]} 30...
Qd2 {[%clk 0:00:20.7]} 31. Rf1 {[%clk 0:00:31.6]} 31... Qe3+ {[%clk 0:00:18.7]}
32. Kh1 {[%clk 0:00:31.1]} 32... Qe2 {[%clk 0:00:19.3]} 33. Rg1 {[%clk
0:00:27.7]} 33... f4 {[%clk 0:00:19.8]} 34. Qb8 {[%clk 0:00:18.6]} 34... f3
{[%clk 0:00:17.9]} 35. Qb4+ {[%clk 0:00:19.1]} 35... Kd7 {[%clk 0:00:16.7]} 36.
Qb5+ {[%clk 0:00:19]} 36... Kd6 {[%clk 0:00:16.1]} 37. Qb4+ {[%clk 0:00:19]}
37... c5 {[%clk 0:00:16]} 38. Qb8+ {[%clk 0:00:18.3]} 38... Kd5 {[%clk
0:00:14.1]} 39. Rh8 {[%clk 0:00:13]} 39... Rd7 {[%clk 0:00:10.8]} 40. gxf3
{[%clk 0:00:11]} 40... Qxf3+ {[%clk 0:00:10.7]} 41. Rg2 {[%clk 0:00:11.5]} 41...
Qf1+ {[%clk 0:00:08.2]} 42. Rg1 {[%clk 0:00:11.1]} 42... Qf3+ {[%clk 0:00:09.1]}
43. Rg2 {[%clk 0:00:11.5]} 43... Ke4 {[%clk 0:00:06.8]} 44. Qa8+ {[%clk
0:00:11.5]} 44... Kf4 {[%clk 0:00:07.3]} 45. Qxf3+ {[%clk 0:00:10.7]} 45... Kxf3
{[%clk 0:00:08.2]} 46. Rh3+ {[%clk 0:00:11.2]} 46... Ke4 {[%clk 0:00:07.1]} 47.
Rc2 {[%clk 0:00:11.5]} 47... Rd1+ {[%clk 0:00:06.7]} 48. Kg2 {[%clk 0:00:11.1]}
48... Nf4+ {[%clk 0:00:07.3]} 49. Kg3 {[%clk 0:00:11.8]} 49... Rd3+ {[%clk
0:00:07.5]} 50. Kg4 {[%clk 0:00:11.5]} 50... f5+ {[%clk 0:00:08]} 51. Kxg5
{[%clk 0:00:11.4]} 51... Nxh3+ {[%clk 0:00:08.7]} 52. Kf6 {[%clk 0:00:11.2]} 0-1